[Event "Late-Titled-Tuesday-Blitz-June-25-2024"]
[Site "Chess.com"]
[Date "2024.06.25"]
[Round "1"]
[White "konradrutkowski"]
[Black "mishanick"]
[Result "0-1"]
[WhiteElo "2532"]
[BlackElo "3163"]
[TimeControl "180+1"]
[EndTime "14:06:13 PDT"]
[Termination "mishanick won by resignation"]

1. e4 {[%clk 0:03:00.9]} 1... c5 {[%clk 0:02:58.8]} 2. Nf3 {[%clk 0:02:59.7]}
2... e6 {[%clk 0:02:59.1]} 3. c3 {[%clk 0:02:59.4]} 3... Nf6 {[%clk 0:02:58.8]}
4. e5 {[%clk 0:02:58.1]} 4... Nd5 {[%clk 0:02:57.1]} 5. Bc4 {[%clk 0:02:58.6]}
5... d6 {[%clk 0:02:54.9]} 6. exd6 {[%clk 0:02:55.9]} 6... Bxd6 {[%clk
0:02:53.2]} 7. d4 {[%clk 0:02:55.8]} 7... O-O {[%clk 0:02:53.1]} 8. O-O {[%clk
0:02:55.7]} 8... Nc6 {[%clk 0:02:53.1]} 9. Bg5 {[%clk 0:02:38.9]} 9... Be7
{[%clk 0:02:52.6]} 10. Bxe7 {[%clk 0:02:38.1]} 10... Qxe7 {[%clk 0:02:51.1]} 11.
Re1 {[%clk 0:02:33.9]} 11... Rd8 {[%clk 0:02:50]} 12. Bxd5 {[%clk 0:02:18]}
12... Rxd5 {[%clk 0:02:49.2]} 13. c4 {[%clk 0:02:18.3]} 13... Rd8 {[%clk
0:02:46.3]} 14. d5 {[%clk 0:02:18.1]} 14... Qf6 {[%clk 0:02:46.9]} 15. Nc3
{[%clk 0:02:14.2]} 15... exd5 {[%clk 0:02:43.6]} 16. Nxd5 {[%clk 0:01:58.7]}
16... Qd6 {[%clk 0:02:41.3]} 17. Qc2 {[%clk 0:01:45.7]} 17... Bg4 {[%clk
0:02:38.4]} 18. Ng5 {[%clk 0:01:37.3]} 18... Qg6 {[%clk 0:02:36.8]} 19. Qxg6
{[%clk 0:01:30.5]} 19... hxg6 {[%clk 0:02:37.7]} 20. f3 {[%clk 0:01:24.8]} 20...
Bf5 {[%clk 0:02:32.6]} 21. Rad1 {[%clk 0:01:17.5]} 21... f6 {[%clk 0:02:29]} 22.
Ne6 {[%clk 0:01:11]} 22... Bxe6 {[%clk 0:02:29]} 23. Rxe6 {[%clk 0:01:11.5]}
23... Kf7 {[%clk 0:02:29.6]} 24. Ree1 {[%clk 0:01:07.8]} 24... Rd7 {[%clk
0:02:28.3]} 25. Nc3 {[%clk 0:01:03.8]} 25... Rxd1 {[%clk 0:02:27.9]} 26. Rxd1
{[%clk 0:01:03.5]} 26... Nd4 {[%clk 0:02:28.4]} 27. Kf2 {[%clk 0:01:01.7]} 27...
Re8 {[%clk 0:02:27.8]} 28. Ne4 {[%clk 0:00:52.7]} 28... Re5 {[%clk 0:02:15.4]}
29. Rd2 {[%clk 0:00:42.3]} 29... b6 {[%clk 0:02:14.9]} 30. Nc3 {[%clk 0:00:30]}
30... g5 {[%clk 0:02:11]} 31. Ne2 {[%clk 0:00:28.3]} 31... Nc6 {[%clk
0:01:54.1]} 32. Rd7+ {[%clk 0:00:26.8]} 32... Re7 {[%clk 0:01:54.3]} 33. Rxe7+
{[%clk 0:00:26.8]} 33... Kxe7 {[%clk 0:01:55.2]} 34. Ke3 {[%clk 0:00:26.6]}
34... Ke6 {[%clk 0:01:55.8]} 35. a3 {[%clk 0:00:26.1]} 35... Ke5 {[%clk
0:01:55.2]} 36. g3 {[%clk 0:00:25.9]} 36... Na5 {[%clk 0:01:55]} 37. Kd3 {[%clk
0:00:20.8]} 37... a6 {[%clk 0:01:55.5]} 38. b4 {[%clk 0:00:19.2]} 38... cxb4
{[%clk 0:01:54.6]} 39. axb4 {[%clk 0:00:20.1]} 39... Nc6 {[%clk 0:01:55.3]} 40.
Kc3 {[%clk 0:00:17.7]} 40... a5 {[%clk 0:01:55.7]} 41. bxa5 {[%clk 0:00:14.8]}
41... bxa5 {[%clk 0:01:55.6]} 42. h3 {[%clk 0:00:13.7]} 42... g6 {[%clk
0:01:54.8]} 43. h4 {[%clk 0:00:10.4]} 43... gxh4 {[%clk 0:01:54.6]} 44. gxh4
{[%clk 0:00:11.3]} 44... f5 {[%clk 0:01:55.2]} 45. Kb3 {[%clk 0:00:06.4]} 45...
Nd4+ {[%clk 0:01:54]} 46. Nxd4 {[%clk 0:00:06.4]} 46... Kxd4 {[%clk 0:01:54.9]}
47. f4 {[%clk 0:00:05.4]} 47... Kc5 {[%clk 0:01:54.2]} 48. Kc3 {[%clk
0:00:05.4]} 48... a4 {[%clk 0:01:54.4]} 49. Kd3 {[%clk 0:00:02.7]} 49... a3
{[%clk 0:01:54.8]} 50. Kc3 {[%clk 0:00:03.4]} 50... a2 {[%clk 0:01:55.4]} 51.
Kb2 {[%clk 0:00:03.8]} 51... Kxc4 {[%clk 0:01:56.1]} 52. Kxa2 {[%clk 0:00:04.5]}
52... Kd4 {[%clk 0:01:56.6]} 53. Kb3 {[%clk 0:00:05.2]} 53... Ke4 {[%clk
0:01:57.1]} 54. Kc4 {[%clk 0:00:05.7]} 54... Kxf4 {[%clk 0:01:57.5]} 55. Kd4
{[%clk 0:00:06.4]} 55... Kg4 {[%clk 0:01:57.9]} 0-1

[Event "Late-Titled-Tuesday-Blitz-June-25-2024"]
[Site "Chess.com"]
[Date "2024.06.25"]
[Round "1"]
[White "Chess_Star1234"]
[Black "DenisQ"]
[Result "0-1"]
[WhiteElo "2396"]
[BlackElo "2688"]
[TimeControl "180+1"]
[EndTime "14:06:17 PDT"]
[Termination "DenisQ won by resignation"]

1. d4 {[%clk 0:02:55.7]} 1... d5 {[%clk 0:02:59]} 2. c4 {[%clk 0:02:54.1]} 2...
c6 {[%clk 0:02:59.2]} 3. Nf3 {[%clk 0:02:53.8]} 3... Nf6 {[%clk 0:02:59.3]} 4.
Nc3 {[%clk 0:02:53.8]} 4... e6 {[%clk 0:02:58.8]} 5. Bg5 {[%clk 0:02:53.4]} 5...
h6 {[%clk 0:02:55.8]} 6. Bxf6 {[%clk 0:02:52.4]} 6... Qxf6 {[%clk 0:02:56.7]} 7.
e3 {[%clk 0:02:52.3]} 7... Nd7 {[%clk 0:02:56.8]} 8. Qc2 {[%clk 0:02:48.9]} 8...
g6 {[%clk 0:02:55.5]} 9. Bd3 {[%clk 0:02:47.4]} 9... dxc4 {[%clk 0:02:54.5]} 10.
Bxc4 {[%clk 0:02:47.4]} 10... Bg7 {[%clk 0:02:54.3]} 11. O-O {[%clk 0:02:47.3]}
11... O-O {[%clk 0:02:54.2]} 12. Rfd1 {[%clk 0:02:45.8]} 12... Qe7 {[%clk
0:02:51.3]} 13. Rac1 {[%clk 0:02:14.2]} 13... b6 {[%clk 0:02:48.9]} 14. Qe2
{[%clk 0:02:00.3]} 14... a5 {[%clk 0:02:39.6]} 15. a4 {[%clk 0:01:47.8]} 15...
Bb7 {[%clk 0:02:33.7]} 16. h3 {[%clk 0:01:46.5]} 16... Rfd8 {[%clk 0:02:26.9]}
17. Qc2 {[%clk 0:01:46.2]} 17... Rac8 {[%clk 0:02:18.1]} 18. Be2 {[%clk
0:01:44.9]} 18... e5 {[%clk 0:02:12.5]} 19. dxe5 {[%clk 0:01:32.3]} 19... Nxe5
{[%clk 0:02:11]} 20. Nxe5 {[%clk 0:01:32.8]} 20... Bxe5 {[%clk 0:02:07.5]} 21.
Qb3 {[%clk 0:01:14]} 21... Qb4 {[%clk 0:02:05.4]} 22. Bc4 {[%clk 0:01:01.9]}
22... Qxb3 {[%clk 0:02:04.1]} 23. Bxb3 {[%clk 0:00:58.6]} 23... Kf8 {[%clk
0:01:54.3]} 24. Kf1 {[%clk 0:00:49.4]} 24... Ke7 {[%clk 0:01:51.1]} 25. Ke2
{[%clk 0:00:44.3]} 25... Ba6+ {[%clk 0:01:49.1]} 26. Kf3 {[%clk 0:00:42]} 26...
f5 {[%clk 0:01:43.1]} 27. Rxd8 {[%clk 0:00:36.1]} 27... Rxd8 {[%clk 0:01:42]}
28. Rd1 {[%clk 0:00:36.4]} 28... Rxd1 {[%clk 0:01:40.8]} 29. Bxd1 {[%clk
0:00:35.9]} 29... Kd6 {[%clk 0:01:34.7]} 30. g4 {[%clk 0:00:24.7]} 30... Kc5
{[%clk 0:01:31.8]} 31. gxf5 {[%clk 0:00:21.1]} 31... gxf5 {[%clk 0:01:32.7]} 32.
Bc2 {[%clk 0:00:21.3]} 32... Bxc3 {[%clk 0:01:17]} 33. bxc3 {[%clk 0:00:20.3]}
33... Kc4 {[%clk 0:01:17.7]} 34. Bxf5 {[%clk 0:00:19.3]} 34... Kxc3 {[%clk
0:01:17.8]} 35. Bd7 {[%clk 0:00:16.2]} 35... b5 {[%clk 0:01:17.4]} 36. Bxc6
{[%clk 0:00:15.7]} 36... b4 {[%clk 0:01:17.3]} 37. Kg4 {[%clk 0:00:13.9]} 37...
b3 {[%clk 0:01:16.7]} 38. Bd5 {[%clk 0:00:13.9]} 38... Bc4 {[%clk 0:01:16.2]}
39. Be4 {[%clk 0:00:14.1]} 39... Bd3 {[%clk 0:01:16.1]} 40. Bd5 {[%clk
0:00:13.8]} 40... b2 {[%clk 0:01:16.3]} 41. Ba2 {[%clk 0:00:14.5]} 41... Kb4
{[%clk 0:01:14]} 0-1

[Event "Late-Titled-Tuesday-Blitz-June-25-2024"]
[Site "Chess.com"]
[Date "2024.06.25"]
[Round "1"]
[White "ivanquiroga"]
[Black "AryanTari"]
[Result "0-1"]
[WhiteElo "2513"]
[BlackElo "3015"]
[TimeControl "180+1"]
[EndTime "14:06:18 PDT"]
[Termination "AryanTari won by resignation"]

1. d4 {[%clk 0:02:59.1]} 1... d5 {[%clk 0:02:59.6]} 2. c4 {[%clk 0:02:58.6]}
2... e6 {[%clk 0:02:59.1]} 3. Nc3 {[%clk 0:02:58.6]} 3... c5 {[%clk 0:02:57.4]}
4. cxd5 {[%clk 0:02:56]} 4... cxd4 {[%clk 0:02:55.6]} 5. Qxd4 {[%clk 0:02:55.7]}
5... Nc6 {[%clk 0:02:55.2]} 6. Qd1 {[%clk 0:02:54.9]} 6... exd5 {[%clk 0:02:55]}
7. e3 {[%clk 0:02:54.2]} 7... Nf6 {[%clk 0:02:54.1]} 8. Nf3 {[%clk 0:02:53.7]}
8... Bb4 {[%clk 0:02:53.8]} 9. Bd2 {[%clk 0:02:53.3]} 9... O-O {[%clk
0:02:48.5]} 10. Be2 {[%clk 0:02:52.2]} 10... Ne4 {[%clk 0:02:35.1]} 11. Nxe4
{[%clk 0:02:28.5]} 11... dxe4 {[%clk 0:02:32.3]} 12. Nd4 {[%clk 0:01:48.2]}
12... Bxd2+ {[%clk 0:02:18.3]} 13. Qxd2 {[%clk 0:01:49.1]} 13... Qg5 {[%clk
0:02:12.2]} 14. Nxc6 {[%clk 0:01:38.5]} 14... bxc6 {[%clk 0:02:13.1]} 15. O-O-O
{[%clk 0:01:15.6]} 15... Be6 {[%clk 0:02:12]} 16. h4 {[%clk 0:00:59.9]} 16...
Qf6 {[%clk 0:01:58.9]} 17. Qc3 {[%clk 0:00:38]} 17... Qxf2 {[%clk 0:01:55.2]}
18. Rd2 {[%clk 0:00:37.6]} 18... Rad8 {[%clk 0:01:43.1]} 19. Rc2 {[%clk
0:00:23.7]} 19... Qxg2 {[%clk 0:01:33.6]} 20. Qe1 {[%clk 0:00:19.3]} 20... Qg6
{[%clk 0:01:26.2]} 21. Rg1 {[%clk 0:00:19]} 21... Qf6 {[%clk 0:01:26.3]} 22. h5
{[%clk 0:00:18.6]} 22... h6 {[%clk 0:01:25.3]} 23. Qg3 {[%clk 0:00:18]} 23...
Rd5 {[%clk 0:01:22.1]} 24. Bc4 {[%clk 0:00:17.9]} 24... Rg5 {[%clk 0:01:21.5]}
25. Qh2 {[%clk 0:00:18.1]} 25... Rxg1+ {[%clk 0:01:19]} 26. Qxg1 {[%clk
0:00:19]} 26... Rd8 {[%clk 0:01:14.5]} 27. Bxe6 {[%clk 0:00:18.4]} 27... Qxe6
{[%clk 0:01:14.9]} 28. Rg2 {[%clk 0:00:17.5]} 28... Qe5 {[%clk 0:01:12.3]} 29.
Rc2 {[%clk 0:00:14.4]} 29... Qxh5 {[%clk 0:01:10.5]} 30. Rxc6 {[%clk 0:00:14.3]}
30... Qd5 {[%clk 0:01:07.4]} 31. Rxh6 {[%clk 0:00:06.3]} 31... Qxa2 {[%clk
0:01:04.3]} 32. Rh1 {[%clk 0:00:05.1]} 32... Rc8+ {[%clk 0:01:02.3]} 0-1

[Event "Late-Titled-Tuesday-Blitz-June-25-2024"]
[Site "Chess.com"]
[Date "2024.06.25"]
[Round "1"]
[White "zverr1"]
[Black "elizabethcastaneda"]
[Result "1-0"]
[WhiteElo "2563"]
[BlackElo "2176"]
[TimeControl "180+1"]
[EndTime "14:06:21 PDT"]
[Termination "zverr1 won by resignation"]

1. e4 {[%clk 0:02:59.7]} 1... c5 {[%clk 0:02:59.7]} 2. Nf3 {[%clk 0:02:54.5]}
2... d6 {[%clk 0:02:59.7]} 3. Nc3 {[%clk 0:02:53.2]} 3... Nf6 {[%clk 0:02:59.3]}
4. e5 {[%clk 0:02:53]} 4... dxe5 {[%clk 0:02:56]} 5. Nxe5 {[%clk 0:02:53.9]}
5... g6 {[%clk 0:02:55.5]} 6. Bc4 {[%clk 0:02:43.2]} 6... e6 {[%clk 0:02:51.8]}
7. Qf3 {[%clk 0:02:30.6]} 7... Bg7 {[%clk 0:02:49.2]} 8. Bb5+ {[%clk 0:02:28.5]}
8... Nbd7 {[%clk 0:02:48.6]} 9. Bxd7+ {[%clk 0:02:25.7]} 9... Bxd7 {[%clk
0:02:45.5]} 10. Qxb7 {[%clk 0:02:25.1]} 10... O-O {[%clk 0:02:41]} 11. Nxd7
{[%clk 0:02:21.6]} 11... Nxd7 {[%clk 0:02:41.9]} 12. O-O {[%clk 0:02:18.4]}
12... Ne5 {[%clk 0:02:30.9]} 13. d3 {[%clk 0:02:04.8]} 13... Qh4 {[%clk
0:02:22]} 14. Qe4 {[%clk 0:01:53.7]} 14... Qh5 {[%clk 0:02:05.8]} 15. h3 {[%clk
0:01:35.2]} 15... Rad8 {[%clk 0:02:05.6]} 16. Qe2 {[%clk 0:01:16.9]} 16... Qf5
{[%clk 0:02:00.5]} 17. Be3 {[%clk 0:01:14.9]} 17... c4 {[%clk 0:01:47]} 18. dxc4
{[%clk 0:01:06.9]} 18... Rc8 {[%clk 0:01:46.9]} 19. c5 {[%clk 0:01:05.7]} 19...
Rb8 {[%clk 0:01:42.1]} 20. Rab1 {[%clk 0:01:02.7]} 20... Rb4 {[%clk 0:01:42.2]}
21. a3 {[%clk 0:00:48]} 21... Rh4 {[%clk 0:01:41.6]} 22. f4 {[%clk 0:00:45]}
22... Nc6 {[%clk 0:01:33.3]} 23. Qf2 {[%clk 0:00:44]} 23... Rh6 {[%clk
0:01:22.2]} 24. Nb5 {[%clk 0:00:38.8]} 24... e5 {[%clk 0:01:09.8]} 25. Nd6
{[%clk 0:00:30.5]} 25... Qe6 {[%clk 0:01:04.6]} 26. f5 {[%clk 0:00:22.4]} 26...
gxf5 {[%clk 0:00:57.7]} 27. Bxh6 {[%clk 0:00:21.2]} 27... Qxh6 {[%clk
0:00:56.3]} 28. Nxf5 {[%clk 0:00:20.2]} 28... Qg6 {[%clk 0:00:54.3]} 29. Nxg7
{[%clk 0:00:16.6]} 29... Kxg7 {[%clk 0:00:54.5]} 30. Qf5 {[%clk 0:00:15]} 30...
Qg3 {[%clk 0:00:53.5]} 31. Rf3 {[%clk 0:00:12.8]} 1-0

[Event "Late-Titled-Tuesday-Blitz-June-25-2024"]
[Site "Chess.com"]
[Date "2024.06.25"]
[Round "1"]
[White "Shahdad2007"]
[Black "LUISMIGUELOV"]
[Result "1-0"]
[WhiteElo "2587"]
[BlackElo "2227"]
[TimeControl "180+1"]
[EndTime "14:06:25 PDT"]
[Termination "Shahdad2007 won by checkmate"]

1. e4 {[%clk 0:02:59.8]} 1... c6 {[%clk 0:02:59.6]} 2. Nc3 {[%clk 0:02:58.6]}
2... d5 {[%clk 0:02:59.9]} 3. Nf3 {[%clk 0:02:58.5]} 3... Bg4 {[%clk 0:02:53.9]}
4. h3 {[%clk 0:02:58.2]} 4... Bxf3 {[%clk 0:02:52.2]} 5. Qxf3 {[%clk 0:02:59.1]}
5... e6 {[%clk 0:02:51.9]} 6. d4 {[%clk 0:02:58.5]} 6... Nf6 {[%clk 0:02:33.9]}
7. Bd3 {[%clk 0:02:58.3]} 7... dxe4 {[%clk 0:02:32.8]} 8. Nxe4 {[%clk
0:02:59.2]} 8... Nxe4 {[%clk 0:02:31.4]} 9. Qxe4 {[%clk 0:02:58.5]} 9... Nd7
{[%clk 0:02:26.7]} 10. c3 {[%clk 0:02:56.1]} 10... Nf6 {[%clk 0:02:25.8]} 11.
Qe2 {[%clk 0:02:54.2]} 11... Bd6 {[%clk 0:02:24.6]} 12. O-O {[%clk 0:02:50.4]}
12... h6 {[%clk 0:02:21]} 13. f4 {[%clk 0:02:43.7]} 13... O-O {[%clk 0:02:19.4]}
14. f5 {[%clk 0:02:40]} 14... exf5 {[%clk 0:02:17.9]} 15. Bxf5 {[%clk 0:02:39]}
15... Re8 {[%clk 0:02:16.6]} 16. Qf3 {[%clk 0:02:38.7]} 16... Re7 {[%clk
0:02:04.7]} 17. Bd3 {[%clk 0:02:36.2]} 17... Re6 {[%clk 0:01:49.3]} 18. Bd2
{[%clk 0:02:31.8]} 18... Qc7 {[%clk 0:01:37.6]} 19. Bc4 {[%clk 0:02:30.3]} 19...
Ne4 {[%clk 0:01:05.1]} 20. Bxh6 {[%clk 0:02:08.9]} 20... Bh2+ {[%clk 0:00:55.5]}
21. Kh1 {[%clk 0:02:07.1]} 21... Ng3+ {[%clk 0:00:55.1]} 22. Kxh2 {[%clk
0:02:07.5]} 22... Nxf1+ {[%clk 0:00:54.9]} 23. Kg1 {[%clk 0:02:08.1]} 23... Qh2+
{[%clk 0:00:45.4]} 24. Kxf1 {[%clk 0:02:02.5]} 24... Rf6 {[%clk 0:00:45.5]} 25.
Be3 {[%clk 0:02:01.9]} 25... Rxf3+ {[%clk 0:00:42.1]} 26. gxf3 {[%clk
0:02:02.8]} 26... Qxh3+ {[%clk 0:00:37.2]} 27. Ke2 {[%clk 0:01:57.6]} 27... Re8
{[%clk 0:00:35.2]} 28. Rf1 {[%clk 0:01:48.1]} 28... Qg2+ {[%clk 0:00:31.2]} 29.
Rf2 {[%clk 0:01:46.5]} 29... Qh1 {[%clk 0:00:30.5]} 30. Kd2 {[%clk 0:01:41.3]}
30... Qb1 {[%clk 0:00:28.1]} 31. b4 {[%clk 0:01:37.8]} 31... Qb2+ {[%clk
0:00:25.6]} 32. Kd3 {[%clk 0:01:36.8]} 32... Qa1 {[%clk 0:00:23.4]} 33. Re2
{[%clk 0:01:36.4]} 33... Qd1+ {[%clk 0:00:21.7]} 34. Rd2 {[%clk 0:01:32.7]}
34... Qf1+ {[%clk 0:00:20.8]} 35. Re2 {[%clk 0:01:30.9]} 35... Rxe3+ {[%clk
0:00:18.4]} 36. Kxe3 {[%clk 0:01:28.8]} 36... Qc1+ {[%clk 0:00:17.5]} 37. Kd3
{[%clk 0:01:28.2]} 37... Qb1+ {[%clk 0:00:16.5]} 38. Kd2 {[%clk 0:01:25.5]}
38... Qb2+ {[%clk 0:00:15.4]} 39. Kd3 {[%clk 0:01:25.7]} 39... Qb1+ {[%clk
0:00:14.8]} 40. Ke3 {[%clk 0:01:25.3]} 40... b5 {[%clk 0:00:14.2]} 41. Bb3
{[%clk 0:01:24.8]} 41... Qc1+ {[%clk 0:00:12.9]} 42. Kd3 {[%clk 0:01:25]} 42...
Qb1+ {[%clk 0:00:11.1]} 43. Bc2 {[%clk 0:01:21.2]} 43... Qxa2 {[%clk 0:00:09.4]}
44. Kd2 {[%clk 0:01:20.7]} 44... Qd5 {[%clk 0:00:07.8]} 45. Re8# {[%clk
0:01:20.6]} 1-0

[Event "Late-Titled-Tuesday-Blitz-June-25-2024"]
[Site "Chess.com"]
[Date "2024.06.25"]
[Round "1"]
[White "DryCounty"]
[Black "Beaterawn"]
[Result "1/2-1/2"]
[WhiteElo "2665"]
[BlackElo "2399"]
[TimeControl "180+1"]
[EndTime "14:06:26 PDT"]
[Termination "Game drawn by agreement"]

1. e4 {[%clk 0:03:00.6]} 1... c5 {[%clk 0:02:59.3]} 2. Nf3 {[%clk 0:03:00]} 2...
e6 {[%clk 0:02:58.9]} 3. d4 {[%clk 0:02:59.5]} 3... cxd4 {[%clk 0:02:59.8]} 4.
Nxd4 {[%clk 0:02:59.1]} 4... a6 {[%clk 0:02:59.1]} 5. Nc3 {[%clk 0:02:59.1]}
5... Qc7 {[%clk 0:02:59.3]} 6. g3 {[%clk 0:02:58.8]} 6... Nf6 {[%clk 0:02:56.4]}
7. Bg2 {[%clk 0:02:58.9]} 7... Bb4 {[%clk 0:02:55.5]} 8. O-O {[%clk 0:02:57.7]}
8... Bxc3 {[%clk 0:02:53.4]} 9. bxc3 {[%clk 0:02:57.1]} 9... O-O {[%clk
0:02:53.7]} 10. Ba3 {[%clk 0:02:54.2]} 10... Re8 {[%clk 0:02:52.5]} 11. e5
{[%clk 0:02:40.6]} 11... Qxe5 {[%clk 0:02:45.7]} 12. Nf3 {[%clk 0:02:41]} 12...
Qxc3 {[%clk 0:02:40.8]} 13. Bd6 {[%clk 0:02:41.4]} 13... Nc6 {[%clk 0:02:36.6]}
14. Re1 {[%clk 0:02:36.9]} 14... b5 {[%clk 0:02:23]} 15. Re3 {[%clk 0:02:26]}
15... Qa5 {[%clk 0:02:18.7]} 16. Qd2 {[%clk 0:02:25.1]} 16... Qxd2 {[%clk
0:02:15.7]} 17. Nxd2 {[%clk 0:02:26]} 17... Bb7 {[%clk 0:02:15]} 18. Nb3 {[%clk
0:02:17.6]} 18... Nd8 {[%clk 0:02:04.7]} 19. Nc5 {[%clk 0:02:10.6]} 19... Bxg2
{[%clk 0:01:51.1]} 20. Kxg2 {[%clk 0:02:11.5]} 20... Ra7 {[%clk 0:01:42.7]} 21.
a4 {[%clk 0:02:05.1]} 21... Nb7 {[%clk 0:01:41.3]} 22. Rd3 {[%clk 0:01:53.1]}
22... Nxd6 {[%clk 0:01:23.9]} 23. Rxd6 {[%clk 0:01:52.6]} 23... Rc8 {[%clk
0:01:17.2]} 24. Rxa6 {[%clk 0:01:43]} 24... Rxa6 {[%clk 0:01:11]} 25. Nxa6
{[%clk 0:01:43.9]} 25... bxa4 {[%clk 0:01:10.8]} 26. Nb4 {[%clk 0:01:40.6]}
26... Ra8 {[%clk 0:00:53.5]} 27. c4 {[%clk 0:01:40.7]} 27... Kf8 {[%clk
0:00:50.7]} 28. Ra3 {[%clk 0:01:35.7]} 28... Rc8 {[%clk 0:00:39.7]} 29. Rxa4
{[%clk 0:01:31]} 29... Rxc4 {[%clk 0:00:38.5]} 30. Ra8+ {[%clk 0:01:31.2]} 30...
Ke7 {[%clk 0:00:38.6]} 31. Nd3 {[%clk 0:01:31.7]} 31... Rc7 {[%clk 0:00:23.9]}
32. h3 {[%clk 0:01:27.4]} 32... Nd5 {[%clk 0:00:24]} 33. Rh8 {[%clk 0:01:25.8]}
33... h6 {[%clk 0:00:24.1]} 34. Rg8 {[%clk 0:01:25.4]} 34... Kf6 {[%clk
0:00:24]} 35. Rd8 {[%clk 0:01:24.6]} 35... Ne7 {[%clk 0:00:21]} 36. Ra8 {[%clk
0:01:21.5]} 36... d5 {[%clk 0:00:20.9]} 37. Nf4 {[%clk 0:01:21.4]} 37... g6
{[%clk 0:00:19]} 38. Rd8 {[%clk 0:01:16.5]} 38... h5 {[%clk 0:00:17.9]} 39. g4
{[%clk 0:01:15.4]} 39... hxg4 {[%clk 0:00:18.8]} 40. hxg4 {[%clk 0:01:15.1]}
40... Nc6 {[%clk 0:00:17.6]} 41. Rxd5 {[%clk 0:01:11.6]} 41... g5 {[%clk
0:00:14.9]} 42. Nh5+ {[%clk 0:01:10.7]} 42... Kg6 {[%clk 0:00:15]} 43. Rc5
{[%clk 0:01:07.2]} 43... f5 {[%clk 0:00:13.5]} 1/2-1/2

[Event "Late-Titled-Tuesday-Blitz-June-25-2024"]
[Site "Chess.com"]
[Date "2024.06.25"]
[Round "1"]
[White "Root_21"]
[Black "AlphaPerseii"]
[Result "1-0"]
[WhiteElo "2659"]
[BlackElo "2379"]
[TimeControl "180+1"]
[EndTime "14:06:26 PDT"]
[Termination "Root_21 won by resignation"]

1. Nf3 {[%clk 0:03:00.9]} 1... d5 {[%clk 0:02:59.9]} 2. g3 {[%clk 0:03:00.4]}
2... Nf6 {[%clk 0:02:58.7]} 3. Bg2 {[%clk 0:03:00.7]} 3... c5 {[%clk 0:02:56]}
4. O-O {[%clk 0:03:00.6]} 4... e6 {[%clk 0:02:53.4]} 5. d4 {[%clk 0:02:59.2]}
5... cxd4 {[%clk 0:02:53.9]} 6. Nxd4 {[%clk 0:03:00.1]} 6... e5 {[%clk
0:02:54.5]} 7. Nb3 {[%clk 0:02:58.5]} 7... Nc6 {[%clk 0:02:46.9]} 8. Bg5 {[%clk
0:02:58.4]} 8... Be6 {[%clk 0:02:42.6]} 9. Nc3 {[%clk 0:02:55.1]} 9... e4 {[%clk
0:02:24.8]} 10. Nd4 {[%clk 0:02:48.5]} 10... h6 {[%clk 0:02:10.1]} 11. Be3
{[%clk 0:02:35.3]} 11... Nxd4 {[%clk 0:02:00.7]} 12. Bxd4 {[%clk 0:02:35.1]}
12... Be7 {[%clk 0:01:43.9]} 13. Qd2 {[%clk 0:02:27.9]} 13... O-O {[%clk
0:01:40.4]} 14. Rfd1 {[%clk 0:02:27.7]} 14... Ne8 {[%clk 0:01:06]} 15. Be3
{[%clk 0:02:17.7]} 15... Nf6 {[%clk 0:01:06.3]} 16. Nb5 {[%clk 0:02:17.2]} 16...
Qd7 {[%clk 0:00:57.6]} 17. Nd4 {[%clk 0:02:07.5]} 17... Bh3 {[%clk 0:00:57.4]}
18. Rac1 {[%clk 0:01:55.9]} 18... Rac8 {[%clk 0:00:47.4]} 19. Nb3 {[%clk
0:01:48.8]} 19... Bxg2 {[%clk 0:00:18.1]} 20. Kxg2 {[%clk 0:01:49.7]} 20... b5
{[%clk 0:00:18.5]} 21. c3 {[%clk 0:01:45.1]} 21... Rfd8 {[%clk 0:00:17.9]} 22.
Qd4 {[%clk 0:01:41.1]} 22... a6 {[%clk 0:00:17.1]} 23. Ra1 {[%clk 0:01:36.6]}
23... Ng4 {[%clk 0:00:12.1]} 24. h3 {[%clk 0:01:27.7]} 24... Rc4 {[%clk
0:00:11.6]} 25. Qd2 {[%clk 0:01:27.3]} 25... Ne5 {[%clk 0:00:09.8]} 26. Na5
{[%clk 0:01:17.1]} 26... Rcc8 {[%clk 0:00:09.3]} 27. Qd4 {[%clk 0:01:08.6]}
27... Qe6 {[%clk 0:00:07.1]} 28. a4 {[%clk 0:01:00.3]} 28... Bf6 {[%clk
0:00:07.2]} 29. Qb6 {[%clk 0:00:59.3]} 29... Rd6 {[%clk 0:00:06.8]} 30. Qb7
{[%clk 0:00:56.3]} 30... bxa4 {[%clk 0:00:02.8]} 31. Rxa4 {[%clk 0:00:51]} 31...
Nd7 {[%clk 0:00:02.8]} 32. Qxc8+ {[%clk 0:00:49.9]} 1-0